bitfinex/quotes_BTCUSD_20250212
["timestamp","ask_amount","ask_price","bid_price","bid_amount"]
[1739332489508,0.001,95566.0,95565.0,0.023]
[1739332489715,0.001,95566.0,95565.0,0.33478465]
[1739332490759,0.00022366,95567.0,95566.0,0.179959]
[1739332490962,0.00022366,95567.0,95566.0,0.28246265]
[1739332491971,0.00122366,95567.0,95566.0,0.28246265]
[1739332492704,0.00322366,95567.0,95566.0,0.28246265]
[1739332512621,0.0762,95582.0,95566.0,0.28246265]
[1739332512879,0.156939,95578.0,95572.0,0.156949]
[1739332513889,0.366186,95580.0,95572.0,0.156949]
[1739332514794,0.0762,95582.0,95568.0,0.023]
[1739332514795,0.246134,95582.0,95568.0,0.023]
[1739332514969,0.246134,95582.0,95576.0,0.156943]
[1739332515170,0.005,95580.0,95574.0,0.156944]
[1739332515573,0.008,95580.0,95574.0,0.156944]
[1739332515949,0.005,95580.0,95574.0,0.156944]
[1739332516153,0.00022366,95578.0,95574.0,0.156944]
[1739332516473,0.00022366,95578.0,95574.0,0.157944]
[1739332517173,0.00022366,95578.0,95575.0,0.02137159]
[1739332517381,0.00022366,95578.0,95575.0,0.156943]
[1739332518470,0.00022366,95578.0,95577.0,0.156941]
[1739332520590,0.00022366,95578.0,95577.0,0.157941]
[1739332520806,0.00022366,95578.0,95577.0,0.159941]
[1739332521017,0.00022366,95578.0,95577.0,0.17236168]
[1739332521358,0.00022366,95578.0,95577.0,0.17136168]
[1739332521590,0.00122366,95578.0,95577.0,0.60286533]
[1739332521863,0.00122366,95578.0,95577.0,0.60586533]
[1739332522458,0.00122366,95578.0,95577.0,0.92716533]
[1739332528152,0.00122366,95578.0,95577.0,1.07716533]
[1739332528314,0.00022366,95578.0,95577.0,1.06916533]
[1739332528699,0.00122366,95578.0,95577.0,1.07816533]
[1739332529636,0.00122366,95578.0,95577.0,1.07516533]
[1739332529830,0.00122366,95578.0,95577.0,1.07916533]
[1739332531228,0.00122366,95578.0,95577.0,0.77916533]
[1739332531424,0.00122366,95578.0,95577.0,0.65366168]
[1739332533169,0.00122366,95578.0,95577.0,0.77916533]
[1739332535005,0.00122366,95578.0,95577.0,1.07916533]
[1739332552099,0.0786,95597.0,95596.0,0.15691]
[1739332552312,0.00022387,95599.0,95596.0,0.03091]
[1739332552506,0.00022387,95599.0,95598.0,0.156907]
[1739332554167,0.00022387,95599.0,95598.0,0.158907]
[1739332554890,0.00022387,95599.0,95598.0,0.163907]
[1739332555334,0.00022387,95599.0,95598.0,0.29019521]
[1739332555533,0.00022387,95599.0,95598.0,0.28941065]
[1739332556735,0.00022387,95599.0,95598.0,0.31066555]
[1739332557847,0.00022387,95599.0,95598.0,0.32282279]
[1739332565874,0.00022387,95599.0,95598.0,0.47082279]
[1739332566307,0.00022387,95599.0,95598.0,0.47282279]
[1739332566717,0.00022387,95599.0,95598.0,0.46782279]
[1739332566921,0.00022387,95599.0,95598.0,0.47382279]
[1739332576837,0.07864232,95609.0,95601.0,0.023]
[1739332577030,0.156905,95599.0,95598.0,0.008]
[1739332577434,0.202805,95599.0,95598.0,0.008]
[1739332577796,0.20411255,95599.0,95598.0,0.002]
[1739332577999,0.35541013,95599.0,95598.0,0.002]
[1739332578200,0.30530865,95599.0,95598.0,0.002]
[1739332579468,0.30530865,95599.0,95596.0,0.00022365]
[1739332579469,0.202808,95597.0,95596.0,0.00022365]
[1739332579663,0.30661938,95597.0,95596.0,0.00022365]
[1739332579862,0.38041165,95597.0,95596.0,0.00022365]
[1739332584645,0.37539557,95597.0,95596.0,0.00022365]
[1739332597168,0.40705936,95597.0,95596.0,0.00022365]
[1739332598835,0.40716596,95597.0,95596.0,0.00022365]
[1739332599065,0.41216596,95597.0,95596.0,0.00022365]
[1739332599266,0.38250217,95597.0,95596.0,0.00022365]
[1739332599466,0.38050217,95597.0,95596.0,0.00022365]
[1739332599661,0.37550217,95597.0,95596.0,0.00022365]
[1739332599988,0.39050217,95597.0,95596.0,0.00122365]
[1739332602091,0.40193818,95597.0,95596.0,0.00122365]
[1739332602660,0.50444183,95597.0,95596.0,0.00122365]
[1739332603715,0.40193818,95597.0,95596.0,0.00122365]
[1739332607644,0.55193818,95597.0,95596.0,0.00122365]
[1739332607851,0.55193818,95597.0,95596.0,6.5e-07]
[1739332608755,0.156946,95574.0,95573.0,0.0001065]
[1739332608983,0.231946,95574.0,95573.0,0.0001065]
[1739332609972,0.232946,95574.0,95573.0,0.0001065]
[1739332610858,0.3236167,95574.0,95573.0,0.0001065]
[1739332611411,0.232946,95574.0,95573.0,0.0001065]
[1739332615576,0.33544965,95574.0,95573.0,0.0001065]
[1739332616264,0.33444965,95574.0,95573.0,0.0001065]
[1739332616646,0.33944965,95574.0,95573.0,0.0001065]
[1739332616862,0.34244965,95574.0,95573.0,0.0001065]
[1739332617041,0.4449533,95574.0,95573.0,0.0001065]
[1739332621033,0.34244965,95574.0,95573.0,0.0001065]
[1739332627086,0.09358074,95574.0,95573.0,0.0001065]
[1739332627379,0.09488885,95574.0,95573.0,0.0001065]
[1739332627588,0.25183485,95574.0,95573.0,0.0001065]
[1739332627809,0.25052674,95574.0,95573.0,0.0001065]
[1739332629208,0.008,95574.0,95573.0,0.0001065]
[1739332630222,0.008,95574.0,95573.0,0.0785065]
[1739332630460,0.003,95574.0,95573.0,0.0785065]
[1739332630683,0.003,95574.0,95573.0,0.2354545]
[1739332630890,0.007,95574.0,95573.0,0.2354545]
[1739332631223,0.003,95574.0,95573.0,0.2354545]
[1739332631504,0.003,95574.0,95573.0,0.0785065]
[1739332631646,0.001,95574.0,95573.0,0.2354545]
[1739332632078,0.003,95574.0,95573.0,0.2354545]
[1739332632285,0.209222,95592.0,95575.0,0.030944]
[1739332632579,0.0001066,95597.0,95576.0,0.10250365]
[1739332632851,0.209221,95593.0,95576.0,0.10250365]
[1739332633146,0.156923,95588.0,95576.0,0.10250365]
[1739332633555,0.156921,95590.0,95576.0,0.10250365]
[1739332633688,0.156921,95590.0,95576.0,0.25944565]
[1739332634464,0.15692,95590.0,95577.0,0.15694]
[1739332634822,0.15678137,95590.0,95576.0,0.25944665]
[1739332635023,0.004,95588.0,95576.0,0.25944665]
[1739332635409,0.15678137,95590.0,95576.0,0.25944665]
[1739332635811,0.002,95588.0,95576.0,0.25944665]
[1739332636198,0.156928,95586.0,95576.0,0.10250365]
[1739332636400,0.15487834,95586.0,95576.0,0.10250365]
[1739332636636,0.156925,95588.0,95577.0,0.001]
[1739332637000,0.00130768,95587.0,95577.0,0.001]
[1739332637179,0.002,95588.0,95573.0,0.09009077]
[1739332637494,0.156933,95583.0,95573.0,0.09009077]
[1739332637669,0.002,95586.0,95573.0,0.09009077]
[1739332637670,0.156938,95579.0,95573.0,0.09009077]
[1739332637880,0.209245,95582.0,95573.0,0.09009077]
[1739332638074,0.156934,95581.0,95573.0,0.09009077]
[1739332639633,0.156931,95583.0,95573.0,0.09009077]
[1739332639829,0.156931,95583.0,95573.0,0.09109077]
[1739332640023,0.156931,95583.0,95573.0,0.09209077]
[1739332640455,0.156941,95577.0,95573.0,0.09209077]
[1739332640679,0.156937,95580.0,95573.0,0.09009077]
[1739332641778,0.156937,95580.0,95573.0,0.09409077]
[1739332642719,0.156933,95582.0,95573.0,0.09409077]
[1739332642923,0.04689885,95596.0,95573.0,0.09009077]
[1739332643129,0.156933,95583.0,95573.0,0.09209077]
[1739332643351,0.15642058,95583.0,95573.0,0.09209077]
[1739332643544,0.156933,95582.0,95573.0,0.09209077]
[1739332643740,0.156933,95582.0,95573.0,0.09009077]
[1739332644314,0.209238,95585.0,95573.0,0.09009077]
[1739332644488,0.23976517,95595.0,95573.0,0.09009077]
[1739332644489,0.20924,95584.0,95573.0,0.09009077]
[1739332644799,0.156934,95582.0,95573.0,0.09009077]
[1739332644988,0.156935,95581.0,95573.0,0.09009077]
[1739332645356,0.001,95583.0,95573.0,0.09009077]
[1739332645554,0.209244,95582.0,95573.0,0.01169077]
[1739332645745,0.00130783,95581.0,95573.0,0.01169077]
[1739332646120,0.156938,95579.0,95573.0,0.01169077]
[1739332647209,0.003,95581.0,95573.0,0.01169077]
[1739332647649,0.156938,95579.0,95573.0,0.01169077]
[1739332647887,0.001,95579.0,95573.0,0.01169077]
[1739332648284,0.157938,95579.0,95573.0,0.01169077]
[1739332649103,0.158938,95579.0,95573.0,0.01169077]
[1739332649323,0.158938,95579.0,95573.0,0.0001065]
[1739332649324,0.156946,95574.0,95573.0,0.0001065]
[1739332649910,0.209253,95578.0,95573.0,0.0001065]
[1739332650106,0.156946,95574.0,95573.0,0.0001065]
[1739332650652,0.156946,95574.0,95573.0,0.0011065]
[1739332650854,0.209259,95576.0,95573.0,0.0011065]
[1739332651173,0.209234,95587.0,95573.0,0.0041065]
[1739332651377,0.00141451,95586.0,95573.0,0.0041065]
[1739332651621,0.156943,95576.0,95573.0,0.0041065]
[1739332651819,0.0001066,95586.0,95573.0,0.0001065]
[1739332652031,0.156945,95575.0,95573.0,0.0021065]
[1739332652800,0.209237,95585.0,95574.0,0.00956203]
[1739332653073,0.209237,95585.0,95573.0,0.0021065]
[1739332653074,0.156931,95584.0,95573.0,0.0021065]
[1739332653251,0.156934,95582.0,95573.0,0.0001065]
[1739332653638,0.156934,95582.0,95573.0,0.0011065]
[1739332654013,0.156934,95582.0,95573.0,0.0001065]
[1739332654838,0.156934,95582.0,95573.0,0.0011065]
[1739332655242,0.159934,95582.0,95573.0,0.0011065]
[1739332655765,0.159934,95582.0,95573.0,0.0001065]
[1739332656146,0.160934,95582.0,95573.0,0.0001065]
[1739332656326,0.15388544,95581.0,95573.0,0.0001065]
[1739332656513,0.001,95582.0,95573.0,0.0001065]
[1739332656715,0.004,95582.0,95573.0,0.0001065]
[1739332657349,0.209246,95581.0,95565.0,0.023]
[1739332657561,0.156947,95574.0,95564.0,0.15]
[1739332657955,0.15587463,95575.0,95564.0,0.15]
[1739332658515,0.156944,95575.0,95564.0,0.15]
[1739332658728,0.156944,95575.0,95573.0,0.00022386]
[1739332658861,0.209254,95578.0,95573.0,0.00022386]
[1739332659063,0.156943,95576.0,95573.0,0.00022386]
[1739332659247,0.209254,95578.0,95573.0,0.00022386]
[1739332659602,0.209259,95576.0,95573.0,0.00022386]
[1739332659834,0.156946,95574.0,95573.0,0.00022386]
[1739332660045,0.156946,95574.0,95573.0,0.00122386]
[1739332660179,0.156946,95574.0,95573.0,0.00022386]
[1739332661407,0.156946,95574.0,95573.0,0.00322386]
[1739332662166,0.156946,95574.0,95573.0,0.00422386]
[1739332663494,0.156946,95574.0,95573.0,0.00122386]
[1739332663880,0.156946,95574.0,95573.0,0.00422386]
[1739332665323,0.156946,95574.0,95573.0,0.00322386]
[1739332665731,0.156946,95574.0,95573.0,0.00422386]
[1739332670452,0.214492,95574.0,95573.0,0.00422386]
[1739332672572,0.156946,95574.0,95573.0,0.00422386]
[1739332674156,0.209254,95578.0,95573.0,0.00422386]
[1739332674541,0.156943,95576.0,95573.0,0.00422386]
[1739332674764,0.156944,95575.0,95573.0,0.00422386]
[1739332674895,0.156946,95574.0,95573.0,0.00422386]
[1739332675091,0.156946,95574.0,95573.0,0.00122386]
[1739332675774,0.0001066,95583.0,95573.0,0.00122386]
[1739332675952,0.156936,95581.0,95573.0,0.00022386]
[1739332676249,0.156934,95582.0,95573.0,0.00022386]
[1739332677256,0.002,95581.0,95573.0,0.00022386]
[1739332677449,0.002,95581.0,95572.0,0.156949]
[1739332677691,0.156933,95582.0,95570.0,0.01139053]
[1739332677821,0.0001066,95583.0,95570.0,0.01139053]
[1739332678024,0.003,95582.0,95568.0,0.0462]
[1739332678235,0.00095048,95582.0,95570.0,0.20927]
[1739332678437,0.00095048,95582.0,95571.0,0.15695]
[1739332678647,0.001,95581.0,95571.0,0.15695]
[1739332678981,0.209237,95585.0,95571.0,0.156951]
[1739332679178,0.001,95582.0,95571.0,0.156951]
[1739332679378,0.0477044,95581.0,95569.0,0.156953]
[1739332679831,0.2046394,95581.0,95569.0,0.156953]
[1739332679994,0.156935,95581.0,95569.0,0.156953]
[1739332680592,0.157935,95581.0,95570.0,0.156952]
[1739332680791,0.158935,95581.0,95570.0,0.156952]
[1739332680996,0.156929,95585.0,95574.0,0.156945]
[1739332681192,0.001,95581.0,95574.0,0.156945]
[1739332681426,0.002,95581.0,95574.0,0.156945]
[1739332681852,0.001,95581.0,95574.0,0.156945]
[1739332682335,0.001,95581.0,95574.0,0.030945]
[1739332682654,0.156928,95585.0,95573.0,0.156946]
[1739332683265,0.15693,95584.0,95571.0,0.209266]
[1739332683799,0.15693,95584.0,95574.0,0.001]
[1739332684189,0.15693,95584.0,95571.0,0.209266]
[1739332684367,0.15693,95584.0,95573.0,0.156947]
[1739332684564,0.1570366,95584.0,95573.0,0.156947]
[1739332684745,0.1600366,95584.0,95573.0,0.156947]
[1739332685286,0.0031066,95584.0,95572.0,0.156949]
[1739332685521,0.0021066,95584.0,95573.0,0.156947]
[1739332685875,0.1580366,95584.0,95573.0,0.156947]
[1739332686420,0.156932,95583.0,95573.0,0.156948]
[1739332687495,0.156932,95583.0,95571.0,0.20948986]
[1739332687655,0.17760091,95584.0,95573.0,0.156948]
[1739332687857,0.17660091,95584.0,95573.0,0.156948]
[1739332688074,0.17660091,95584.0,95573.0,0.001]
[1739332688398,0.156931,95583.0,95573.0,0.001]
[1739332689394,0.0011066,95584.0,95573.0,0.001]
[1739332689555,0.0024144,95584.0,95573.0,0.001]
[1739332690017,0.0211758,95583.0,95573.0,0.001]
[1739332690229,0.156949,95572.0,95571.0,0.00022386]
[1739332690735,0.15825697,95572.0,95571.0,0.00022386]
[1739332691490,0.156949,95572.0,95571.0,0.00022386]
[1739332691712,0.209253,95578.0,95571.0,0.00022386]
[1739332692142,0.156949,95572.0,95571.0,0.00022386]
[1739332692941,0.156949,95572.0,95571.0,0.00522386]
[1739332693585,0.156949,95572.0,95571.0,0.00722386]
[1739332695978,0.2144957,95572.0,95571.0,0.00722386]
[1739332696744,0.239449,95572.0,95571.0,0.00722386]
[1739332696954,0.38825265,95572.0,95571.0,0.00722386]
[1739332697158,0.39963336,95572.0,95571.0,0.00722386]
[1739332697339,0.54963336,95572.0,95571.0,0.00722386]
[1739332697794,0.15,95570.0,95548.0,0.0001065]
[1739332697997,0.53826765,95563.0,95548.0,0.0001065]
[1739332698402,0.53826765,95563.0,95562.0,5e-07]
[1739332700537,0.55326765,95563.0,95562.0,0.0010005]
[1739332700952,0.56026765,95563.0,95562.0,0.0010005]
[1739332702296,0.15,95562.0,95524.0,0.06405258]
[1739332702499,0.157026,95525.0,95524.0,0.06405258]
[1739332702765,0.157028,95524.0,95512.0,0.11519383]
[1739332702988,0.157028,95524.0,95512.0,0.03139217]
[1739332703184,0.209367,95526.0,95515.0,0.01166306]
[1739332703339,0.157026,95525.0,95515.0,0.01166306]
[1739332703542,0.00130859,95527.0,95524.0,0.001]
[1739332703881,0.157026,95526.0,95524.0,0.001]
[1739332704181,0.157027,95525.0,95515.0,0.01166306]
[1739332704349,0.157027,95525.0,95523.0,0.0061066]
[1739332704888,0.001,95526.0,95524.0,0.002]
[1739332705129,0.001,95526.0,95523.0,0.0061066]
[1739332705508,0.157026,95526.0,95523.0,0.0031066]
[1739332705903,0.158026,95526.0,95524.0,0.006]
[1739332706099,0.158025,95526.0,95524.0,0.006]
[1739332706304,0.157025,95526.0,95523.0,0.0031066]
[1739332706520,0.001,95526.0,95523.0,0.0091066]
[1739332706723,0.001,95526.0,95523.0,0.0061066]
[1739332706918,0.001,95526.0,95524.0,0.002]
[1739332707076,0.157022,95528.0,95523.0,0.0001066]
[1739332707276,0.001,95526.0,95521.0,0.03821874]
[1739332707716,0.001,95526.0,95523.0,0.002]
[1739332707974,0.001,95526.0,95521.0,0.03821874]
[1739332708605,0.157022,95528.0,95521.0,0.03821874]
[1739332708919,0.157022,95528.0,95524.0,0.002]
[1739332709144,0.157024,95527.0,95524.0,0.002]
[1739332709372,0.157024,95527.0,95521.0,0.03821874]
[1739332709373,0.0486,95534.0,95521.0,0.03821874]
[1739332709614,0.157031,95522.0,95521.0,0.03821874]
[1739332709897,0.15833973,95522.0,95521.0,0.002]
[1739332710134,0.15833973,95522.0,95502.0,0.0824]
[1739332710135,0.03794873,95522.0,95502.0,0.0824]
[1739332710371,0.157035,95520.0,95502.0,0.0824]
[1739332710506,0.15834376,95520.0,95501.0,0.02098287]
[1739332710747,0.24879354,95520.0,95501.0,0.02098287]
[1739332710948,0.24748478,95520.0,95501.0,0.02098287]
[1739332711380,0.157035,95520.0,95501.0,0.02098287]
[1739332711587,0.15834377,95520.0,95501.0,0.02098287]
[1739332712376,0.00130877,95520.0,95501.0,0.02098287]
[1739332712619,0.209393,95514.0,95501.0,0.02098287]
[1739332712833,0.15705,95511.0,95501.0,0.02098287]
[1739332713113,0.157044,95515.0,95501.0,0.02098287]
[1739332713342,0.209358,95531.0,95502.0,0.15]
[1739332713568,0.169035,95520.0,95504.0,0.15706]
[1739332713785,0.169035,95520.0,95503.0,0.00078714]
[1739332713786,0.013,95520.0,95503.0,0.00078714]
[1739332714024,0.012,95520.0,95507.0,0.157056]
[1739332714474,0.002,95515.0,95507.0,0.157056]
[1739332714697,0.00648724,95520.0,95507.0,0.157056]
[1739332714926,0.00648724,95520.0,95505.0,0.00078706]
[1739332714927,0.002,95520.0,95505.0,0.00078706]
[1739332715146,0.006,95515.0,95506.0,0.157058]
[1739332715573,0.002,95520.0,95506.0,0.157058]
[1739332715706,0.15703,95523.0,95506.0,0.157058]
[1739332715930,0.157022,95528.0,95509.0,0.023]
[1739332716159,0.006,95520.0,95509.0,0.12550365]
[1739332716330,0.08811661,95528.0,95509.0,0.28255465]
[1739332716539,0.157023,95527.0,95509.0,0.28255465]
[1739332716737,0.008,95523.0,95510.0,0.157051]
[1739332717053,0.002,95520.0,95510.0,0.157051]
[1739332717270,0.008,95523.0,95510.0,0.157051]
[1739332717507,0.008,95523.0,95509.0,0.12550365]
[1739332717894,0.008,95523.0,95509.0,0.28255565]
[1739332718686,0.001,95523.0,95509.0,0.28255565]
[1739332718883,0.001,95523.0,95510.0,0.157051]
[1739332719627,0.003,95523.0,95509.0,0.12550365]
[1739332720194,0.14754017,95540.0,95506.0,0.237158]
[1739332720195,0.157039,95518.0,95506.0,0.0801]
[1739332720434,0.157039,95518.0,95503.0,0.1954067]
[1739332720676,0.00130869,95517.0,95503.0,0.29791035]
[1739332720914,0.0826087,95522.0,95503.0,0.29791035]
[1739332721121,0.157041,95517.0,95503.0,0.29791035]
[1739332721416,0.0013087,95518.0,95505.0,0.0001067]
[1739332721623,0.0013087,95517.0,95505.0,0.0001067]
[1739332721864,0.209389,95516.0,95505.0,0.0001067]
[1739332722098,0.209393,95514.0,95505.0,0.0001067]
[1739332722560,0.157051,95511.0,95505.0,0.0001067]
[1739332722959,0.157051,95511.0,95505.0,0.0031067]
[1739332723392,0.157051,95511.0,95505.0,0.0001067]
[1739332723893,0.158051,95511.0,95505.0,0.0081067]
[1739332724125,0.157052,95510.0,95505.0,0.0081067]
[1739332724421,0.157056,95507.0,95505.0,0.0101067]
[1739332724899,0.001,95511.0,95505.0,0.0101067]
[1739332725219,0.157046,95514.0,95505.0,0.0021067]
[1739332725306,0.157046,95513.0,95505.0,0.0021067]
[1739332725749,0.157046,95513.0,95505.0,0.0001067]
[1739332725892,0.001,95510.0,95505.0,0.0091067]
[1739332726325,0.157046,95513.0,95505.0,0.0001067]
[1739332726521,0.209394,95514.0,95505.0,0.0001067]
[1739332726726,0.158046,95513.0,95505.0,0.0071067]
[1739332727161,0.158046,95513.0,95505.0,0.0101067]
[1739332727463,0.158046,95513.0,95505.0,0.0071067]
[1739332727661,0.158046,95513.0,95505.0,0.0091067]
[1739332727880,0.158046,95513.0,95505.0,0.0071067]
[1739332728070,0.001,95513.0,95505.0,0.0071067]
[1739332728279,0.157048,95512.0,95505.0,0.0091067]
[1739332728505,0.36644,95514.0,95505.0,0.0021067]
[1739332728809,0.36644,95514.0,95505.0,0.0071067]
[1739332729155,0.36644,95514.0,95505.0,0.0021067]
[1739332729353,0.157047,95513.0,95505.0,0.0021067]
[1739332729559,0.001,95512.0,95505.0,0.0081067]
[1739332730043,0.157047,95513.0,95505.0,0.0021067]
[1739332730272,0.157047,95513.0,95505.0,0.0001067]
[1739332730473,0.157047,95513.0,95505.0,0.0011067]
[1739332730754,0.157047,95513.0,95505.0,0.0031067]
[1739332730992,0.0752,95513.0,95505.0,0.0011067]
[1739332731169,0.157058,95506.0,95505.0,0.0011067]
[1739332731550,0.00130893,95510.0,95505.0,0.0011067]
[1739332731754,0.0772,95513.0,95505.0,0.0011067]
[1739332731953,0.157052,95510.0,95505.0,0.0001067]
[1739332732156,0.209397,95512.0,95505.0,0.0001067]
[1739332732368,0.157053,95509.0,95505.0,0.0001067]
[1739332732968,0.157052,95510.0,95505.0,0.0001067]
[1739332733252,0.209397,95512.0,95505.0,0.0001067]
[1739332733434,0.157053,95509.0,95505.0,0.0001067]
[1739332733795,0.159053,95509.0,95505.0,0.0001067]
[1739332733992,0.160053,95509.0,95505.0,0.0001067]
[1739332734394,0.157056,95508.0,95505.0,0.0001067]
[1739332734926,0.001,95509.0,95505.0,0.0001067]
[1739332735126,0.158054,95509.0,95505.0,0.0001067]
[1739332735334,0.157054,95509.0,95505.0,0.0001067]
[1739332735898,0.2225599,95508.0,95505.0,0.0001067]
[1739332736106,0.2235599,95508.0,95505.0,0.0001067]
[1739332736503,0.2225599,95508.0,95505.0,0.0001067]
[1739332737040,0.0655049,95508.0,95505.0,0.0001067]
[1739332737246,0.0665049,95508.0,95505.0,0.0001067]
[1739332738321,0.2235599,95508.0,95505.0,0.0001067]
[1739332738478,0.158055,95508.0,95505.0,0.0001067]
[1739332738840,0.159055,95508.0,95505.0,0.0001067]
[1739332739083,0.157056,95507.0,95505.0,0.0001067]
[1739332739284,0.001,95508.0,95505.0,0.0001067]
[1739332739717,0.002,95508.0,95505.0,0.0001067]
[1739332740280,0.158056,95508.0,95505.0,0.0001067]
[1739332740425,0.159056,95508.0,95505.0,0.0001067]
[1739332740627,0.159056,95508.0,95505.0,0.01473216]
[1739332741934,0.002,95508.0,95505.0,0.0001067]
[1739332742139,0.157056,95507.0,95505.0,0.0001067]
[1739332742352,0.2223614,95507.0,95505.0,0.0001067]
[1739332742545,0.0653054,95507.0,95505.0,0.0001067]
[1739332742769,0.002,95508.0,95505.0,0.0001067]
[1739332742980,0.158055,95508.0,95505.0,0.0001067]
[1739332743210,0.157055,95508.0,95505.0,0.0001067]
[1739332743584,0.001,95507.0,95505.0,0.0001067]
[1739332743763,0.157055,95508.0,95505.0,0.0001067]
[1739332744161,0.157058,95506.0,95505.0,0.0001067]
[1739332744364,0.15836686,95506.0,95505.0,0.0001067]
[1739332745169,0.26087051,95506.0,95505.0,0.0001067]
[1739332745372,0.157092,95485.0,95452.0,0.3]
[1739332745617,0.38649565,95485.0,95461.0,0.01076635]
[1739332746036,0.38649565,95485.0,95465.0,0.01423378]
[1739332746687,0.286992,95485.0,95465.0,0.01423378]
[1739332747614,0.161092,95485.0,95465.0,0.01423378]
[1739332747886,0.209462,95483.0,95465.0,0.01423378]
[1739332748086,0.1571,95481.0,95465.0,0.01423378]
[1739332748302,0.209462,95483.0,95465.0,0.01423378]
[1739332748303,0.1571,95480.0,95465.0,0.01423378]
[1739332748441,0.2151025,95480.0,95465.0,0.01423378]
[1739332748846,0.1571,95480.0,95465.0,0.01423378]
[1739332749072,0.15840933,95480.0,95452.0,0.0783]
[1739332749658,0.15840933,95480.0,95453.0,0.15]
[1739332750258,0.26091298,95480.0,95453.0,0.15]
[1739332750453,0.25960365,95480.0,95453.0,0.15]
[1739332750862,0.25960365,95480.0,95479.0,0.00571967]
[1739332750863,0.53650365,95480.0,95479.0,0.00571967]
[1739332751061,0.62670476,95480.0,95479.0,6.7e-07]
[1739332751809,0.46960476,95480.0,95451.0,0.0002]
[1739332752110,0.15711,95474.0,95451.0,0.0002]
[1739332752282,0.36342696,95474.0,95451.0,0.0002]
[1739332752487,0.36342696,95474.0,95445.0,0.02802411]
[1739332752488,0.157151,95450.0,95445.0,0.02802411]
[1739332752695,0.157156,95446.0,95445.0,0.02802411]
[1739332752886,0.209533,95451.0,95444.0,0.09414752]
[1739332753071,0.157158,95445.0,95444.0,0.09414752]
[1739332753453,0.0492,95457.0,95444.0,0.09414752]
[1739332753658,0.157148,95451.0,95444.0,0.09414752]
[1739332753877,0.15715,95450.0,95444.0,0.09414752]
[1739332754085,0.209507,95462.0,95444.0,0.09414752]
[1739332754307,0.209511,95460.0,95444.0,0.09414752]
[1739332754513,0.157158,95445.0,95444.0,0.09414752]
[1739332754700,0.32962745,95445.0,95444.0,0.09714752]
[1739332755348,0.32962745,95445.0,95444.0,0.09414752]
[1739332756112,0.30586165,95445.0,95444.0,0.09514752]
[1739332756462,0.30586165,95445.0,95444.0,0.09414752]
[1739332756671,0.37266782,95445.0,95444.0,7e-05]
[1739332756878,0.30586165,95445.0,95444.0,7e-05]
[1739332757279,0.37766782,95445.0,95444.0,7e-05]
[1739332757481,0.209546,95444.0,95411.0,0.1649094]
[1739332757686,0.157194,95424.0,95411.0,0.1649094]
[1739332757901,0.157191,95425.0,95411.0,0.1649094]
[1739332758204,0.00131004,95424.0,95411.0,0.1649094]
[1739332758404,0.0210887,95424.0,95411.0,0.0002]
[1739332758701,0.157205,95417.0,95411.0,0.0002]
[1739332758906,0.0805,95426.0,95411.0,0.0002]
[1739332758907,0.157207,95416.0,95411.0,0.0002]
[1739332759111,0.157212,95413.0,95411.0,0.0002]
[1739332759270,0.10381384,95412.0,95411.0,0.0002]
[1739332759680,0.157212,95413.0,95411.0,0.0002]
[1739332759924,0.00131026,95412.0,95411.0,0.0062]
[1739332760493,0.04701109,95412.0,95411.0,0.0072]
[1739332760694,0.04701109,95412.0,95411.0,0.0062]
[1739332761093,0.05001109,95412.0,95411.0,0.0062]
[1739332761368,0.00431026,95412.0,95411.0,0.0062]
[1739332761570,0.00431026,95412.0,95411.0,0.0002]
[1739332761777,0.01131026,95412.0,95411.0,0.0012]
[1739332762566,0.01,95412.0,95411.0,0.0012]
[1739332763952,0.007,95412.0,95411.0,0.0012]
[1739332764177,0.01,95412.0,95411.0,0.0012]
[1739332764961,0.01,95412.0,95411.0,0.00465176]
[1739332765184,0.01,95412.0,95411.0,0.0012]
[1739332765345,0.01,95412.0,95411.0,0.00396141]
[1739332765530,0.01,95412.0,95411.0,0.0012]
[1739332765730,0.01,95412.0,95411.0,0.00396141]
[1739332765933,0.01,95412.0,95411.0,0.0012]
[1739332766134,0.003,95412.0,95411.0,0.00296141]
[1739332766383,0.157197,95422.0,95411.0,0.0002]
[1739332766589,0.157198,95421.0,95411.0,0.00365176]
[1739332766802,0.002,95412.0,95411.0,0.0002]
[1739332767007,0.157197,95422.0,95411.0,0.0002]
[1739332767509,0.008,95412.0,95411.0,0.001]
[1739332767883,0.001,95412.0,95409.0,0.0001067]
[1739332768109,0.04518977,95422.0,95409.0,0.0001067]
[1739332768307,0.209597,95421.0,95411.0,0.001]
[1739332768522,0.21538677,95422.0,95411.0,0.001]
[1739332768837,0.06476594,95421.0,95409.0,0.0001067]
[1739332768991,0.001,95412.0,95409.0,0.0001067]
[1739332770760,0.06345588,95421.0,95409.0,0.0001067]
[1739332770960,0.06345588,95421.0,95411.0,0.001]
[1739332771337,0.06345588,95421.0,95411.0,0.0011067]
[1739332771537,0.04392389,95420.0,95411.0,0.0001067]
[1739332771799,0.001,95412.0,95411.0,0.0001067]
[1739332772129,0.157188,95427.0,95411.0,0.0001067]
[1739332772330,0.00131006,95426.0,95409.0,0.0001067]
[1739332772542,0.009,95421.0,95411.0,0.001]
[1739332772979,0.012,95421.0,95411.0,0.001]
[1739332773134,0.009,95421.0,95411.0,0.001]
[1739332773858,0.157196,95423.0,95410.0,0.14754017]
[1739332774057,0.003,95421.0,95411.0,0.001]
[1739332774261,0.003,95421.0,95413.0,0.023]
[1739332774488,0.012,95427.0,95413.0,0.023]
[1739332774489,0.012,95427.0,95415.0,0.023]
[1739332774691,0.003,95421.0,95417.0,0.14754017]
[1739332774905,0.011,95421.0,95415.0,0.12550365]
[1739332775499,0.003,95421.0,95416.0,0.10250365]
[1739332775736,0.003,95421.0,95419.0,0.02055856]
[1739332776096,0.157178,95433.0,95419.0,0.02055856]
[1739332776294,0.003,95421.0,95419.0,0.02055856]
[1739332776747,0.209563,95437.0,95419.0,0.02055856]
[1739332776895,0.157177,95434.0,95420.0,0.14754017]
[1739332777267,0.157179,95433.0,95420.0,0.14754017]